bitfinex-derivatives/quotes_SOLF0:USTF0_20250113
["timestamp","ask_amount","ask_price","bid_price","bid_amount"]
[1736754002344,8.23418127,183.04,182.98,8.23418127]
[1736754002848,2.7333,183.03,182.99,2.7337]
[1736754003546,2.7333,183.03,182.98,8.23418127]
[1736754003748,8.23418127,183.04,183.01,2.7335]
[1736754004045,8.23418127,183.07,183.0,8.23418127]
[1736754004244,10.96698127,183.07,183.02,8.23418127]
[1736754004549,8.23418127,183.07,183.02,8.23418127]
[1736754005143,2.7326,183.08,183.04,2.7331]
[1736754005343,14.05418127,183.09,183.04,2.7331]
[1736754006248,2.7327,183.07,183.04,2.7331]
[1736754006848,5.82,183.09,183.04,8.23418127]
[1736754007247,2.7325,183.08,183.04,2.733]
[1736754007443,5.82,183.09,183.04,8.23418127]
[1736754009646,10.96668127,183.08,183.02,8.23418127]
[1736754010245,8.23418127,183.1,183.04,8.23418127]
[1736754010743,2.7324,183.09,183.06,2.7327]
[1736754011051,8.23418127,183.1,183.02,8.23418127]
[1736754011450,2.7326,183.08,183.02,8.23418127]
[1736754012051,2.7326,183.08,183.05,2.7329]
[1736754012547,8.23418127,183.1,183.07,2.7326]
[1736754012951,3.2811,183.13,183.04,8.23418127]
[1736754013150,10.96628127,183.11,183.06,8.23418127]
[1736754013351,8.23418127,183.11,183.04,8.23418127]
[1736754013551,8.23418127,183.09,183.04,8.23418127]
[1736754013753,10.96668127,183.09,183.05,2.7329]
[1736754014050,8.23418127,183.09,183.05,2.7329]
[1736754014243,8.23418127,183.09,183.04,8.23418127]
[1736754014450,2.7325,183.08,183.04,10.96728127]
[1736754014753,2.7325,183.08,183.04,2.7331]
[1736754017055,2.7325,183.08,183.05,2.733]
[1736754017349,10.96618127,183.12,183.06,8.23418127]
[1736754017552,8.23418127,183.12,183.06,8.23418127]
[1736754017748,8.23418127,183.12,183.06,2.7327]
[1736754017953,8.23418127,183.1,183.04,8.23418127]
[1736754018143,2.7326,183.08,183.02,8.23418127]
[1736754018951,2.7326,183.08,183.04,2.733]
[1736754019456,10.96638127,183.1,183.04,8.23418127]
[1736754019948,2.7324,183.09,183.04,8.23418127]
[1736754020155,2.7324,183.09,183.06,2.7327]
[1736754021355,2.732,183.12,183.08,2.7324]
[1736754021553,10.96618127,183.12,183.08,2.7324]
[1736754021752,8.23418127,183.12,183.08,2.7324]
[1736754021952,2.7321,183.11,183.08,2.7324]
[1736754022657,8.23418127,183.1,182.96,4.7562]
[1736754022854,8.23418127,183.04,182.97,8.23418127]
[1736754023063,10.96738127,183.04,183.0,2.7336]
[1736754024160,10.96738127,183.04,183.01,2.7335]
[1736754024358,2.7327,183.07,182.99,8.23418127]
[1736754024556,8.23418127,183.09,183.01,8.23418127]
[1736754024758,8.23418127,183.09,183.06,2.7327]
[1736754025155,8.23418127,183.11,183.08,2.7324]
[1736754026963,8.23418127,183.11,183.05,8.23418127]
[1736754027162,2.7323,183.1,183.06,2.7327]
[1736754027464,2.7323,183.1,183.02,12.89989712]
[1736754028067,2.7323,183.1,183.07,2.7326]
[1736754030261,3.2811,183.13,183.02,12.89989712]
[1736754030466,12.89989712,183.11,183.05,2.7329]
[1736754030658,12.89989712,183.11,182.99,12.89989712]
[1736754030862,2.7327,183.07,183.03,2.7331]
[1736754031065,12.89989712,183.08,182.96,17.65609712]
[1736754031462,12.89989712,183.08,183.0,2.7336]
[1736754031768,12.89989712,183.05,182.96,4.7562]
[1736754031973,2.7334,183.02,182.98,2.734]
[1736754032366,12.89989712,183.05,182.93,14.45559712]
[1736754032570,2.7338,183.0,182.95,2.7344]
[1736754032771,12.89989712,183.02,182.95,2.7344]
[1736754033664,2.7337,183.0,182.95,2.7344]
[1736754034272,2.7337,183.0,182.96,2.7342]
[1736754035171,12.89989712,183.02,182.93,1.5557]
[1736754035373,2.7339,182.99,182.95,2.7344]
[1736754035976,2.7337,183.0,182.96,2.7343]
[1736754036174,12.89989712,183.02,182.93,1.5557]
[1736754036865,2.7339,182.99,182.95,2.7343]
[1736754037174,12.89989712,183.02,182.93,1.5557]
[1736754037373,12.89989712,183.02,182.92,11.01461892]
[1736754037570,2.7342,182.97,182.93,2.7346]
[1736754037772,12.89989712,182.99,182.92,11.01461892]
[1736754038173,2.7343,182.96,182.92,13.74951892]
[1736754040175,2.7342,182.97,182.92,11.01461892]
[1736754040376,2.7342,182.97,182.93,2.7347]
[1736754040878,2.7342,182.97,182.92,13.74951892]
[1736754041380,12.89989712,182.99,182.92,13.74951892]
[1736754041581,2.7344,182.96,182.92,13.74951892]
[1736754042078,12.89989712,182.99,182.91,2.735]
[1736754042279,2.7346,182.95,182.91,2.735]
[1736754042479,12.89989712,182.96,182.87,1.6067]
[1736754042682,2.7347,182.94,182.89,2.7352]
[1736754042983,2.7347,182.94,182.87,1.6067]
[1736754043576,2.7348,182.93,182.89,2.7353]
[1736754046175,2.7349,182.92,182.89,2.7353]
[1736754046577,2.7349,182.92,182.87,1.6067]
[1736754046782,2.7349,182.92,182.88,2.7355]
[1736754049478,11.00749511,182.92,182.88,2.7355]
[1736754050279,8.27259511,182.92,182.87,1.6067]
[1736754050483,8.27259511,182.95,182.88,8.27259511]
[1736754050682,3.2557,182.98,182.9,8.27259511]
[1736754050883,2.7343,182.96,182.93,2.7347]
[1736754051980,2.7343,182.96,182.9,8.27259511]
[1736754052184,2.7343,182.96,182.92,2.7348]
[1736754052482,1.623,183.03,182.9,8.27259511]
[1736754052788,8.27259511,183.0,182.96,2.7342]
[1736754052982,11.00659511,182.98,182.87,1.6067]
[1736754053177,11.00659511,182.98,182.92,8.27259511]
[1736754054277,11.00659511,182.98,182.94,2.7345]
[1736754054688,11.00659511,182.98,182.92,8.27259511]
[1736754054884,11.00659511,182.98,182.95,2.7344]
[1736754056790,8.27259511,182.96,182.9,8.27259511]
[1736754056983,11.00699511,182.96,182.9,8.27259511]
[1736754057789,8.27259511,182.96,182.9,8.27259511]
[1736754058687,8.27259511,182.96,182.93,2.7346]
[1736754058889,8.27259511,182.96,182.9,8.27259511]
[1736754059092,8.27259511,182.98,182.95,2.7344]
[1736754059984,2.7337,183.01,182.94,8.27259511]
[1736754060190,8.27259511,183.01,182.94,8.27259511]
[1736754060385,4.7556,183.08,182.96,8.27259511]
[1736754060584,8.27259511,183.02,182.99,2.7338]
[1736754060785,2.7332,183.04,182.99,2.7338]
[1736754060984,8.27259511,183.03,182.99,2.7338]
[1736754061883,8.27259511,183.03,182.96,8.27259511]
[1736754062588,11.00589511,183.03,182.99,2.7337]
[1736754063292,8.27259511,183.01,182.94,3.3267]
[1736754063592,8.27259511,182.99,182.94,3.3267]
[1736754063786,8.27259511,182.99,182.97,2.734]
[1736754063986,5.82,183.07,182.94,11.59929511]
[1736754064188,8.27259511,183.03,182.96,8.27259511]
[1736754064492,8.27259511,183.05,182.98,8.27259511]
[1736754065093,8.27259511,183.05,183.02,2.7333]
[1736754065291,3.1847,183.08,182.98,8.27259511]
[1736754065490,4.8209,183.14,183.02,8.27259511]
[1736754065695,4.8209,183.14,183.07,2.7326]
[1736754065696,8.27259511,183.09,183.07,2.7326]
[1736754066889,8.27259511,183.09,183.04,8.27259511]
[1736754067095,8.27259511,183.09,183.02,8.27259511]
[1736754067291,12.90720346,183.08,182.96,18.72720346]
[1736754067684,2.7323,183.1,182.99,12.90720346]
[1736754067890,12.90720346,183.11,183.0,1.6924]
[1736754068189,12.90720346,183.11,183.01,1.6691]
[1736754068389,2.7326,183.08,183.01,1.6691]
[1736754068788,12.90720346,183.11,183.02,2.7334]
[1736754068989,2.7328,183.07,183.02,2.7334]
[1736754069183,12.90720346,183.08,182.96,18.72720346]
[1736754069894,2.733,183.05,183.01,2.7334]
[1736754070195,12.90720346,183.08,182.96,18.72720346]
[1736754070493,2.7324,183.09,183.05,2.7329]
[1736754070691,12.90720346,183.11,183.05,2.7329]
[1736754071097,2.7324,183.09,183.05,2.7329]
[1736754073400,15.63930346,183.11,183.07,2.7326]
[1736754074201,15.63930346,183.11,183.04,2.733]
[1736754074202,12.90720346,183.11,183.04,2.733]
[1736754074403,12.90720346,183.11,182.98,12.90720346]
[1736754075191,2.7328,183.07,183.03,2.7331]
[1736754076404,2.7325,183.09,183.05,2.7329]
[1736754077608,12.90720346,183.11,183.01,12.90720346]
[1736754077904,17.72810346,183.14,183.02,4.8899]
[1736754078804,2.7321,183.11,183.05,2.7329]
[1736754079004,2.7321,183.11,183.02,4.8899]
[1736754079204,12.90720346,183.11,183.02,1.6139]
[1736754080005,12.90720346,183.08,182.97,1.5442]
[1736754080705,2.733,183.05,183.01,2.7334]
[1736754081101,12.90720346,183.08,182.97,1.5442]
[1736754081302,12.90720346,183.08,182.98,12.90720346]
[1736754082300,15.63980346,183.08,183.04,2.7331]
[1736754082503,2.7326,183.08,182.98,12.90720346]
[1736754083000,2.7326,183.08,183.04,2.7331]
[1736754083506,2.7327,183.07,183.04,2.7331]
[1736754087808,12.90720346,183.11,182.98,12.90720346]
[1736754088107,12.90720346,183.08,182.98,12.90720346]
[1736754088404,2.7337,183.01,182.97,4.2782]
[1736754088600,12.90720346,183.05,182.96,1.6139]
[1736754088806,12.90720346,183.05,182.93,14.48450346]
[1736754089008,2.7338,183.0,182.96,2.7342]
[1736754089308,2.7338,183.0,182.93,14.48450346]
[1736754090309,2.7338,183.0,182.96,2.7342]
[1736754092915,2.7339,182.99,182.95,2.7344]
[1736754093410,2.7339,182.99,182.96,2.7343]
[1736754094608,2.734,182.98,182.94,2.7345]
[1736754095212,2.7343,182.96,182.92,13.74952501]
[1736754097303,2.7343,182.96,182.92,11.01472501]
[1736754097512,12.90720346,183.05,182.92,11.01472501]
[1736754097713,12.90720346,183.05,182.93,12.90720346]
[1736754098112,2.734,182.99,182.95,2.7343]
[1736754100110,12.90720346,183.05,182.93,12.90720346]
[1736754100311,2.7341,182.98,182.94,2.7346]
[1736754100517,12.90720346,183.05,182.94,2.7346]
[1736754100718,2.7341,182.98,182.94,2.7346]
[1736754100917,12.90720346,183.05,182.93,2.7347]
[1736754101114,12.90720346,183.02,182.93,2.7347]
[1736754101617,2.7341,182.98,182.94,2.7346]
[1736754103318,12.90720346,183.05,182.92,11.01472501]
[1736754103519,2.7338,182.99,182.95,2.7343]
[1736754104326,12.90720346,183.05,182.95,2.7343]
[1736754104719,12.90720346,183.05,182.96,2.7343]
[1736754105319,12.90720346,183.05,182.95,12.90720346]
[1736754106325,2.7334,183.02,182.99,2.7338]
[1736754106526,12.90720346,183.05,182.99,2.7338]
[1736754107317,2.7336,183.01,182.98,2.734]
[1736754107523,2.7336,183.01,182.95,12.90720346]
[1736754108328,12.90720346,183.05,182.97,2.7341]
[1736754109026,2.7336,183.01,182.97,2.7341]
[1736754109232,12.90720346,183.05,182.98,2.734]
[1736754109528,2.7327,183.07,182.98,12.90720346]
[1736754109723,91.03822142,183.08,182.99,3.1495]
[1736754109917,91.03822142,183.08,182.99,4.8362]
[1736754110628,2.7327,183.07,183.01,2.7334]
[1736754110830,2.7327,183.07,183.01,12.90720346]
[1736754111335,2.7327,183.07,183.03,8.25699721]
[1736754112237,91.03822142,183.08,183.05,8.25699721]
[1736754113434,91.03822142,183.08,183.02,12.89910282]
[1736754113636,91.03822142,183.08,183.06,2.7327]
[1736754114128,91.03822142,183.08,183.07,2.7327]
[1736754115233,2.7318,183.13,183.08,2.7324]
[1736754115531,145.57018762,183.17,183.05,12.89910282]
[1736754115732,145.57018762,183.17,183.06,1.618]
[1736754116130,2.7316,183.14,183.1,2.7321]
[1736754116324,2.7316,183.14,183.06,1.618]
[1736754116325,145.57018762,183.17,183.06,4.8261]
[1736754116528,132.6710848,183.17,183.08,12.89910282]
[1736754117125,2.7312,183.17,183.12,2.7318]
[1736754117637,2.7314,183.16,183.11,2.7319]
[1736754119027,112.02733795,183.24,183.11,12.89910282]
[1736754119238,0.84451934,183.23,183.15,2.7313]
[1736754120240,2.7309,183.19,183.15,2.7313]
[1736754120441,24.26431653,183.24,183.16,2.7313]
[1736754120643,2.7307,183.21,183.11,12.89910282]
[1736754120940,2.7307,183.21,183.16,2.7312]
[1736754124238,16.17430282,183.24,183.14,12.89910282]
[1736754124443,2.7309,183.19,183.11,12.89910282]
[1736754124643,12.89910282,183.21,183.11,12.89910282]
[1736754124942,2.7314,183.16,183.12,2.7319]
[1736754129146,2.7316,183.15,183.11,2.732]
[1736754129345,12.89910282,183.18,183.08,12.89910282]
[1736754130047,2.7318,183.13,183.09,2.7323]
[1736754130451,2.7318,183.13,183.08,12.89910282]
[1736754130840,12.89910282,183.21,183.08,12.89910282]
[1736754131539,2.7313,183.17,183.12,2.7318]
[1736754132449,2.7314,183.16,183.12,2.7318]
[1736754132648,12.89910282,183.18,183.08,12.89910282]
[1736754132847,12.89910282,183.18,183.06,4.8261]
[1736754133049,2.7319,183.13,183.06,4.8261]
[1736754133443,2.7319,183.13,183.09,2.7322]
[1736754134348,2.7316,183.15,183.1,2.7321]
[1736754134539,2.7316,183.15,183.08,12.89910282]
[1736754134940,2.7316,183.15,183.11,2.7319]
[1736754135345,2.7316,183.15,183.08,12.89910282]
[1736754135541,2.7316,183.15,183.1,2.7322]
[1736754135850,2.7316,183.15,183.08,12.89910282]
[1736754137353,12.89910282,183.18,183.08,12.89910282]
[1736754137554,2.7313,183.16,183.08,12.89910282]
[1736754138156,2.7313,183.16,183.13,2.7317]
[1736754138352,135.8860595,183.24,183.14,12.89910282]
[1736754138756,135.8860595,183.24,183.17,2.7312]
[1736754138957,2.7305,183.22,183.17,2.7312]
[1736754139457,2.7303,183.23,183.19,2.7308]
[1736754140053,135.8860595,183.24,183.17,2.7312]
[1736754140449,3.2752,183.24,183.14,12.89910282]
[1736754141357,2.7306,183.22,183.17,2.7312]
[1736754142250,3.2752,183.24,183.17,2.7312]
[1736754142446,12.89910282,183.21,183.14,2.7316]
[1736754142650,12.89910282,183.21,183.11,12.89910282]
[1736754142845,2.7311,183.18,183.11,12.89910282]
[1736754144060,2.7311,183.18,183.14,2.7316]
[1736754145551,12.89910282,183.21,183.11,12.89910282]
[1736754145751,2.7308,183.2,183.17,2.7311]
[1736754145956,16.17430282,183.24,183.17,2.7311]
[1736754146158,2.7307,183.21,183.17,2.7311]
[1736754146357,16.17430282,183.24,183.17,2.7311]
[1736754147155,2.7307,183.2,183.17,2.7311]
[1736754148351,2.7307,183.2,183.11,12.89910282]
[1736754148352,16.17430282,183.24,183.11,12.89910282]
[1736754148556,2.7306,183.22,183.18,2.731]
[1736754148754,16.17430282,183.24,183.14,12.89910282]
[1736754149261,2.7308,183.2,183.16,2.7312]
[1736754150060,2.7308,183.2,183.17,2.7311]
[1736754152058,2.7304,183.22,183.14,12.89910282]
[1736754152264,91.03822142,183.26,183.17,12.89910282]
[1736754152660,2.7303,183.23,183.17,12.89910282]
[1736754153264,2.7303,183.23,183.2,2.7307]
[1736754154162,2.7303,183.23,183.19,2.7308]
[1736754154362,2.7303,183.23,183.17,12.89910282]
[1736754155355,20.9875626,183.27,183.21,2.7305]
[1736754155555,8.08845978,183.27,183.17,12.89910282]
[1736754155754,8.08845978,183.27,183.18,1.5796]
[1736754155963,8.08845978,183.27,183.18,4.8271]
[1736754156261,10.81815978,183.27,183.23,2.7301]
[1736754157159,8.08845978,183.27,183.18,4.8271]
[1736754158065,2.7301,183.25,183.2,2.7306]
[1736754158267,2.7301,183.25,183.18,4.8271]
[1736754158468,8.08845978,183.27,183.18,4.8271]
[1736754159162,2.7301,183.24,183.2,2.7306]
[1736754162162,8.08845978,183.27,183.2,2.7306]
[1736754162362,2.7303,183.23,183.2,2.7306]
[1736754163870,20.9875626,183.27,183.14,12.89910282]
[1736754164169,12.89910282,183.24,183.11,12.89910282]
[1736754164468,5.9403,183.23,183.19,2.7308]
[1736754165466,2.7304,183.23,183.2,2.7307]
[1736754166372,5.8,183.25,183.14,12.89910282]
[1736754166668,2.7302,183.24,183.17,12.89910282]
[1736754167473,5.8,183.25,183.22,2.7303]
[1736754168076,2.7299,183.26,183.22,2.7303]
[1736754168572,8.08845978,183.27,183.22,2.7303]
[1736754168765,2.73,183.25,183.22,2.7303]
[1736754173567,8.08845978,183.27,183.17,12.89910282]
[1736754173772,2.7301,183.24,183.21,2.7305]
[1736754173972,20.9875626,183.27,183.14,12.89910282]
[1736754174278,12.89910282,183.24,183.14,12.89910282]
[1736754174878,2.7306,183.21,183.17,2.731]
[1736754176878,99.1266812,183.27,183.11,1.6637]
[1736754177178,91.03822142,183.27,183.21,2.7305]
[1736754177378,103.93732424,183.27,183.11,1.6637]
[1736754177578,103.93732424,183.27,183.13,12.89910282]
[1736754178177,12.89910282,183.24,183.13,12.89910282]
[1736754179282,2.7306,183.21,183.17,2.7311]
[1736754180179,12.89910282,183.24,183.17,2.7311]
[1736754180378,2.7307,183.2,183.17,2.7311]
[1736754182084,2.7307,183.2,183.13,12.89910282]
[1736754182383,12.89910282,183.24,183.16,2.7313]
[1736754182583,2.7309,183.19,183.16,2.7313]
[1736754185288,8.2478889,183.21,183.16,2.7313]
[1736754185485,2.7308,183.2,183.16,2.7313]
[1736754186286,8.10380304,183.25,183.15,8.2478889]
[1736754186486,2.7304,183.22,183.18,2.7309]
[1736754187084,151.73036904,183.27,183.2,2.7307]
[1736754187085,2.7301,183.24,183.2,2.7307]
[1736754187284,2.7301,183.24,183.19,8.2478889]
[1736754188283,295.70462142,183.29,183.19,8.2478889]
[1736754188284,95.92462142,183.29,183.19,8.2478889]
[1736754188488,2.7299,183.26,183.21,8.2478889]
[1736754188884,10.9776889,183.27,183.23,2.7302]
[1736754189288,8.2478889,183.27,183.21,8.2478889]
[1736754189487,2.7304,183.23,183.19,8.2478889]
[1736754189689,11.31512398,183.29,183.22,8.2478889]
[1736754189889,11.31512398,183.29,183.24,8.2478889]
[1736754190188,29.35995894,183.29,183.22,8.2478889]
[1736754190786,2.7298,183.27,183.22,10.9782889]
[1736754192294,8.2478889,183.25,183.18,8.2478889]
[1736754193984,8.2478889,183.25,183.17,8.2478889]
[1736754194187,2.7306,183.22,183.18,2.731]
[1736754194491,8.2478889,183.23,183.17,8.2478889]
[1736754195191,8.2478889,183.23,183.19,2.7309]
[1736754195383,8.2478889,183.25,183.17,8.2478889]
[1736754196392,2.7303,183.24,183.2,2.7307]
[1736754196589,2.7303,183.24,183.17,8.2478889]
[1736754196790,2.7303,183.24,183.19,8.2478889]
[1736754196985,2.7303,183.24,183.19,10.9786889]
[1736754197189,2.73,183.25,183.19,8.2478889]
[1736754197389,8.2478889,183.28,183.21,8.2478889]
[1736754197591,8.2478889,183.28,183.23,2.7302]
[1736754198493,8.2478889,183.28,183.21,8.2478889]
[1736754198696,8.2478889,183.28,183.21,10.9782889]
[1736754198995,8.2478889,183.26,183.21,10.9782889]
[1736754199296,8.2478889,183.26,183.19,8.2478889]
[1736754199495,8.2478889,183.24,183.17,8.2478889]
[1736754199896,2.7305,183.22,183.18,2.7309]
[1736754200097,8.2478889,183.24,183.17,8.2478889]
[1736754200292,3.2099,183.29,183.17,8.2478889]
[1736754200498,2.7301,183.25,183.21,2.7305]
[1736754200794,8.2478889,183.26,183.21,2.7305]
[1736754201197,2.73,183.25,183.21,2.7305]
[1736754201497,8.2478889,183.26,183.21,2.7305]
[1736754201895,2.7304,183.23,183.19,8.2478889]
[1736754202200,8.2478889,183.26,183.19,8.2478889]
[1736754202800,2.73,183.25,183.21,2.7306]
[1736754204600,2.7301,183.24,183.21,2.7306]
[1736754207906,2.7303,183.23,183.2,2.7307]
[1736754208503,2.7305,183.22,183.18,2.7309]
[1736754208903,8.2478889,183.24,183.17,8.2478889]
[1736754209203,2.7309,183.19,183.11,1.6637]
[1736754209409,2.7309,183.19,183.15,8.2478889]
[1736754209806,2.7309,183.19,183.16,2.7312]
[1736754210902,2.7312,183.17,183.14,2.7316]
[1736754212304,1.6489,183.25,183.13,8.2478889]
[1736754212507,8.2478889,183.21,183.16,2.7312]
[1736754212708,8.2478889,183.21,183.15,8.2478889]
[1736754213211,2.731,183.19,183.15,10.9792889]
[1736754215308,2.731,183.19,183.15,8.2478889]
[1736754215511,2.731,183.19,183.16,2.7313]
[1736754216506,8.2478889,183.22,183.16,2.7313]
[1736754216702,2.7308,183.2,183.16,2.7313]
[1736754217410,2.7308,183.2,183.17,2.7311]
[1736754217905,2.7305,183.22,183.17,8.2478889]
[1736754218208,8.2478889,183.23,183.17,8.2478889]
[1736754218600,2.7307,183.21,183.17,10.9789889]
[1736754219112,2.7307,183.2,183.17,10.9789889]
[1736754221317,8.2478889,183.23,183.17,8.2478889]
[1736754221518,2.7306,183.21,183.18,2.731]
[1736754224411,96.81822142,183.27,183.19,10.9787889]
[1736754224618,8.2478889,183.25,183.19,10.9787889]
[1736754224816,8.2478889,183.25,183.19,8.2478889]
[1736754225221,2.7306,183.21,183.17,8.2478889]
[1736754225915,2.7306,183.21,183.18,2.731]
[1736754231223,2.7304,183.23,183.19,10.9787889]
[1736754231425,91.03822142,183.27,183.19,8.2478889]
[1736754231722,91.03822142,183.27,183.23,8.2478889]
[1736754232126,91.03822142,183.28,183.23,8.2478889]
[1736754232624,2.7297,183.27,183.23,10.9780889]
[1736754232827,8.2478889,183.27,183.21,8.2478889]
[1736754233019,8.2478889,183.25,183.17,8.2478889]
[1736754233222,8.2478889,183.23,183.17,8.2478889]
[1736754234029,2.7305,183.22,183.18,2.731]
[1736754234226,8.2478889,183.23,183.18,2.731]
[1736754234826,8.2478889,183.21,183.15,8.2478889]
[1736754235727,2.731,183.18,183.15,8.2478889]
[1736754237528,8.2478889,183.21,183.16,2.7313]
[1736754238026,2.7307,183.2,183.16,2.7313]
[1736754239431,2.7307,183.2,183.17,2.7311]
[1736754242635,2.7307,183.2,183.17,10.9789889]
[1736754243134,8.2478889,183.21,183.15,10.9792889]
[1736754244139,2.7311,183.18,183.15,10.9792889]
[1736754244344,1.6247,183.23,183.17,8.2478889]
[1736754244535,91.03822142,183.27,183.19,8.2478889]
[1736754244839,2.7301,183.24,183.21,8.2478889]
[1736754245030,91.03822142,183.26,183.21,10.9784889]
[1736754245235,2.73,183.25,183.23,8.2478889]
[1736754246439,2.7299,183.26,183.23,8.2478889]
[1736754248938,2.7303,183.24,183.21,8.2478889]
[1736754250040,2.7304,183.23,183.19,10.9786889]
[1736754250236,8.2478889,183.25,183.19,8.2478889]
[1736754250738,2.7304,183.23,183.19,8.2478889]
[1736754251038,8.2478889,183.25,183.19,8.2478889]
[1736754252231,2.7304,183.23,183.19,8.2478889]
[1736754252437,2.7304,183.23,183.19,10.9786889]
[1736754253542,2.7305,183.22,183.19,8.2478889]
[1736754255239,2.7305,183.22,183.19,10.9786889]
[1736754260345,2.7305,183.22,183.19,2.7308]
[1736754261741,2.7305,183.22,183.19,10.9786889]
[1736754262745,8.2478889,183.26,183.19,8.2478889]
[1736754262947,16.34944179,183.28,183.21,8.2478889]
[1736754264049,8.2478889,183.26,183.21,8.2478889]
[1736754264252,8.2478889,183.26,183.17,3.2169]
[1736754264543,2.7304,183.23,183.19,2.7308]
[1736754264939,8.2478889,183.26,183.19,2.7308]
[1736754265451,2.7305,183.22,183.19,2.7308]
[1736754265944,2.7305,183.22,183.18,10.9788889]
[1736754266248,2.7306,183.21,183.18,10.9788889]
[1736754267546,8.2478889,183.24,183.18,8.2478889]
[1736754267747,2.7308,183.2,183.16,10.9791889]
[1736754272352,9.64372513,183.26,183.16,8.2478889]
[1736754272549,2.7305,183.22,183.16,8.2478889]
[1736754272740,2.7305,183.22,183.18,2.7309]
[1736754273141,8.2478889,183.23,183.18,2.7309]
[1736754273352,8.2478889,183.23,183.17,2.7311]
[1736754275151,2.7308,183.2,183.17,2.7311]
[1736754278454,8.2478889,183.23,183.12,13.73976082]
[1736754278658,2.731,183.19,183.15,2.7314]
[1736754279256,8.2478889,183.21,183.15,2.7314]
[1736754279460,2.731,183.18,183.15,2.7314]
[1736754281250,2.731,183.18,183.12,13.73976082]
[1736754281251,2.7314,183.16,183.13,2.7317]
[1736754281560,8.2478889,183.17,183.12,10.52056082]
[1736754281753,2.7315,183.16,183.12,13.25236082]
[1736754282356,8.2478889,183.17,183.12,13.25236082]
[1736754282660,8.2478889,183.17,183.11,10.9798889]
[1736754282661,2.7315,183.15,183.11,10.9798889]
[1736754282857,8.2478889,183.15,183.08,8.2478889]
[1736754283265,8.2478889,183.15,183.09,2.7322]
[1736754283266,2.7318,183.13,183.09,2.7322]
[1736754283465,2.7318,183.13,183.08,8.2478889]
[1736754283765,8.2478889,183.15,183.08,8.2478889]
[1736754283967,2.7317,183.14,183.1,10.9800889]
[1736754284169,8.2478889,183.17,183.1,8.2478889]
[1736754284468,2.7314,183.16,183.12,2.7318]
[1736754284669,2.7314,183.16,183.12,10.9796889]
[1736754286371,1.589,183.2,183.12,8.2478889]
[1736754286566,2.7311,183.18,183.14,2.7316]
[1736754287473,8.2478889,183.19,183.14,2.7316]
[1736754287770,2.7312,183.17,183.14,2.7316]
[1736754288165,2.7312,183.17,183.12,8.2478889]
[1736754288366,2.7313,183.16,183.13,2.7317]
[1736754288567,8.2478889,183.17,183.12,8.2478889]
[1736754289171,2.7316,183.15,183.12,8.2478889]
[1736754291071,2.7316,183.15,183.11,2.732]
[1736754294470,8.2478889,183.17,183.11,2.732]
[1736754294775,2.7317,183.14,183.11,2.732]
[1736754297476,8.2478889,183.16,183.11,2.732]
[1736754297671,2.7318,183.13,183.11,2.732]
[1736754298680,2.7318,183.13,183.1,8.2478889]
[1736754298873,2.7318,183.13,183.1,10.9800889]
[1736754299378,2.7318,183.13,183.11,2.7321]
[1736754300281,8.2478889,183.16,183.11,2.7321]
[1736754300479,2.7317,183.14,183.11,2.7321]
[1736754303976,2.7319,183.13,183.09,2.7322]
[1736754304180,8.2478889,183.1,183.05,8.2478889]
[1736754304386,8.2478889,183.1,183.03,8.2478889]
[1736754304683,2.7326,183.08,183.04,2.733]
[1736754304883,2.7326,183.08,183.03,8.2478889]
[1736754305680,2.7327,183.07,183.03,10.9809889]
[1736754305883,2.7327,183.07,183.03,8.2478889]
[1736754307087,2.7327,183.07,183.04,2.7331]
[1736754315484,2.7328,183.06,183.03,8.2478889]
[1736754315689,8.2478889,183.06,182.99,9.9462889]
[1736754315988,8.2478889,183.06,182.92,37.66711652]
[1736754316187,2.7334,183.03,182.99,2.7337]
[1736754316990,8.2478889,183.04,182.94,4.8509]
[1736754317192,8.2478889,183.04,182.97,10.9819889]
[1736754317793,2.7336,183.01,182.97,10.9819889]
[1736754318390,2.7336,183.01,182.98,2.734]
[1736754321097,2.7337,183.0,182.97,10.9819889]
[1736754321399,8.2478889,183.04,182.97,8.2478889]
[1736754322095,2.7336,183.01,182.98,2.734]
[1736754324299,3.1512,183.06,182.97,8.2478889]